fUSD/lending_fUSD_20260115
["ID","MTS","AMOUNT","RATE_DAILY","PERIOD"]
[402067186,1768504245966,-642.16,0.00035616,10]
[402067187,1768504245977,-500.0,0.00035616,10]
[402067188,1768504245987,-500.0,0.00035616,10]
[402067189,1768504245996,-200.0,0.00035616,120]
[402067190,1768504246007,-500.0,0.00035616,10]
[402067191,1768504246016,-500.0,0.00035616,10]
[402067192,1768504246026,-500.0,0.00035616,10]
[402067193,1768504246036,-500.0,0.00035616,10]
[402067194,1768504246046,-579.43987601,0.00035616,10]
[402067195,1768504246056,-500.0,0.00035616,10]
[402067196,1768504246066,-500.0,0.00035616,10]
[402067197,1768504246076,-500.0,0.00035616,10]
[402067198,1768504246086,-500.0,0.00035616,10]
[402067199,1768504246095,-500.0,0.00035616,10]
[402067200,1768504246107,-500.0,0.00035616,10]
[402067201,1768504246116,-512.44,0.00035616,10]
[402067202,1768504246125,-500.0,0.00035616,10]
[402067203,1768504246135,-500.0,0.00035616,10]
[402067204,1768504246146,-500.0,0.00035616,10]
[402067205,1768504246156,-500.0,0.00035616,10]
[402067206,1768504246165,-500.0,0.00035616,10]
[402067207,1768504246176,-979.25,0.00035616,10]
[402067208,1768504246185,-500.0,0.00035616,10]
[402067209,1768504246194,-500.0,0.00035616,10]
[402067210,1768504246203,-806.78,0.00035616,10]
[402067211,1768504246214,-722.79,0.00035616,10]
[402067212,1768504246223,-556.98,0.00035616,10]
[402067213,1768504246232,-717.92,0.00035616,10]
[402067214,1768504246242,-500.0,0.00035616,10]
[402067215,1768504246251,-500.0,0.00035616,10]
[402067216,1768504246261,-500.0,0.00035616,10]
[402067217,1768504246270,-783.65,0.00035616,10]
[402067218,1768504246279,-605.93,0.00035616,10]
[402067219,1768504246289,-500.0,0.00035616,10]
[402067220,1768504246297,-755.21,0.00035616,10]
[402067221,1768504246307,-500.0,0.00035616,10]
[402067222,1768504246320,-524.5,0.00035616,10]
[402067223,1768504246329,-500.0,0.00035616,10]
[402067224,1768504246338,-718.26,0.00035616,10]
[402067225,1768504246347,-519.85,0.00035616,10]
[402067226,1768504246356,-500.0,0.00035616,10]
[402067227,1768504246365,-609.16,0.00035616,10]
[402067228,1768504246374,-500.0,0.00035616,10]
[402067229,1768504246385,-500.0,0.00035616,10]
[402067230,1768504246394,-500.0,0.00035616,10]
[402067231,1768504246403,-771.88,0.00035616,10]
[402067233,1768504246413,-687.46,0.00035616,10]
[402067234,1768504246422,-500.0,0.00035616,10]
[402067235,1768504246432,-580.1,0.00035616,10]
[402067236,1768504246441,-500.0,0.00035616,10]
[402067237,1768504246450,-500.0,0.00035616,10]
[402067238,1768504246460,-607.98,0.00035616,10]
[402067239,1768504246469,-982.61,0.00035616,10]
[402067240,1768504246480,-568.59,0.00035616,10]
[402067241,1768504246489,-525.95773554,0.00035616,10]
[402067242,1768504246498,-783.17,0.00035616,10]
[402067243,1768504246508,-552.04244684,0.00035616,10]
[402067244,1768504246517,-500.0,0.00035616,10]
[402067245,1768504246527,-897.49,0.00035616,10]
[402067246,1768504246536,-500.0,0.00035616,10]
[402067247,1768504246545,-855.47,0.00035616,10]
[402067248,1768504246554,-500.0,0.00035616,10]
[402067249,1768504246563,-500.0,0.00035616,10]
[402067250,1768504246573,-713.04287442,0.00035616,10]
[402067251,1768504246582,-500.0,0.00035616,10]
[402067252,1768504246592,-500.0,0.00035616,10]
[402067253,1768504246602,-500.0,0.00035616,10]
[402067254,1768504246612,-500.0,0.00035616,10]
[402067255,1768504246621,-413.89455935,0.00035616,10]
[402067256,1768504246632,-500.0,0.00035616,10]
[402067257,1768504246642,-500.0,0.00035616,10]
[402067258,1768504246651,-590.68,0.00035616,10]
[402067259,1768504246661,-500.0,0.00035616,10]
[402067260,1768504246671,-500.0,0.00035616,10]
[402067261,1768504246682,-500.0,0.00035616,10]
[402067262,1768504246692,-500.0,0.00035616,10]
[402067263,1768504246701,-500.0,0.00035616,10]
[402067264,1768504246710,-500.0,0.00035616,10]
[402067265,1768504246722,-500.0,0.00035616,10]
[402067266,1768504246736,-541.68870336,0.00035616,10]
[402067267,1768504246750,-300.0,0.00035616,10]
[402067268,1768504246762,-500.0,0.00035616,10]
[402067269,1768504246773,-500.0,0.00035616,10]
[402067270,1768504246786,-500.0,0.00035616,10]
[402067271,1768504246800,-500.0,0.00035616,10]
[402067272,1768504246812,-569.42,0.00035616,10]
[402067273,1768504246825,-500.0,0.00035616,10]
[402067274,1768504246837,-524.79,0.00035616,10]
[402067275,1768504246850,-500.0,0.00035616,10]
[402067276,1768504246861,-500.0,0.00035616,10]
[402067277,1768504246871,-529.3,0.00035616,10]
[402067278,1768504246883,-500.0,0.00035616,10]
[402067279,1768504246895,-500.0,0.00035616,10]
[402067280,1768504246908,-500.0,0.00035616,10]
[402067281,1768504246922,-500.0,0.00035616,10]
[402067282,1768504246935,-511.38,0.00035616,2]
[402067283,1768504246948,-500.0,0.00035616,10]
[402067284,1768504246961,-500.0,0.00035616,10]
[402067285,1768504246974,-500.0,0.00035616,10]
[402067286,1768504246986,-834.92,0.00035616,10]
[402067287,1768504247001,-500.0,0.00035616,10]
[402067288,1768504247012,-200.0,0.00035616,120]
[402067289,1768504247025,-772.27,0.00035616,10]
[402067290,1768504247037,-500.0,0.00035616,10]
[402067291,1768504247049,-1054.65,0.00035616,10]
[402067292,1768504247061,-500.0,0.00035616,10]
[402067293,1768504247075,-500.0,0.00035616,10]
[402067294,1768504247088,-500.0,0.00035616,10]
[402067295,1768504247102,-500.0,0.00035616,10]
[402067296,1768504247115,-564.0,0.00035616,10]
[402067297,1768504247127,-500.0,0.00035616,10]
[402067298,1768504247138,-500.0,0.00035616,10]
[402067299,1768504247149,-500.0,0.00035616,10]
[402067300,1768504247159,-500.0,0.00035616,10]
[402067301,1768504247175,-776.85,0.00035616,10]
[402067302,1768504247187,-500.0,0.00035616,10]
[402067303,1768504247197,-714.3,0.00035616,10]
[402067304,1768504247209,-500.0,0.00035616,10]
[402067305,1768504247220,-500.0,0.00035616,10]
[402067306,1768504247232,-1165.22,0.00035616,10]
[402067307,1768504247245,-500.0,0.00035616,10]
[402067308,1768504247259,-500.0,0.00035616,10]
[402067309,1768504247271,-500.0,0.00035616,10]
[402067310,1768504247282,-500.0,0.00035616,10]
[402067311,1768504247292,-500.0,0.00035616,10]
[402067312,1768504247303,-507.4,0.00035616,10]
[402067313,1768504247314,-500.0,0.00035616,10]
[402067314,1768504247325,-500.0,0.00035616,10]
[402067315,1768504247335,-500.0,0.00035616,10]
[402067316,1768504247346,-500.0,0.00035616,10]
[402067317,1768504247358,-576.87,0.00035616,10]
[402067318,1768504247369,-500.0,0.00035616,10]
[402067319,1768504247380,-500.0,0.00035616,10]
[402067320,1768504247391,-500.0,0.00035616,10]
[402067321,1768504247404,-500.0,0.00035616,10]
[402067322,1768504247415,-200.0,0.00035616,10]
[402067323,1768504247426,-500.0,0.00035616,10]
[402067324,1768504247437,-500.0,0.00035616,10]
[402067325,1768504247449,-230.30158286,0.00035616,10]
[402067326,1768504247460,-500.0,0.00035616,10]
[402067327,1768504247477,-500.0,0.00035616,10]
[402067328,1768504247488,-739.35,0.00035616,10]
[402067329,1768504247500,-500.0,0.00035616,10]
[402067330,1768504247512,-500.0,0.00035616,10]
[402067331,1768504247524,-500.0,0.00035616,10]
[402067332,1768504247535,-500.0,0.00035616,10]
[402067333,1768504247546,-1101.42,0.00035616,10]
[402067334,1768504247557,-500.0,0.00035616,10]
[402067335,1768504247569,-310.78345438,0.00035616,10]
[402067336,1768504247580,-500.0,0.00035616,10]
[402067337,1768504247592,-643.26,0.00035616,10]
[402067338,1768504247603,-513.24443451,0.00035616,10]
[402067339,1768504247614,-500.0,0.00035616,10]
[402067340,1768504247625,-500.0,0.00035616,10]
[402067341,1768504247636,-908.35,0.00035616,10]
[402067342,1768504247647,-500.0,0.00035616,10]
[402067343,1768504247659,-500.0,0.00035616,10]
[402067344,1768504247670,-785.24,0.00035616,10]
[402067345,1768504247681,-500.0,0.00035616,10]
[402067346,1768504247692,-500.0,0.00035616,10]
[402067347,1768504247703,-760.23,0.00035616,10]
[402067348,1768504247714,-500.0,0.00035616,10]
[402067349,1768504247725,-570.14,0.00035616,10]
[402067350,1768504247737,-500.0,0.00035616,10]
[402067351,1768504247747,-500.0,0.00035616,10]
[402067352,1768504247760,-500.0,0.00035616,10]
[402067353,1768504247771,-500.0,0.00035616,10]
[402067354,1768504247783,-332.08713649,0.00035616,10]
[402067355,1768504247794,-682.14,0.00035616,10]
[402067356,1768504247806,-500.0,0.00035616,10]
[402067357,1768504247817,-500.0,0.00035616,10]
[402067358,1768504247829,-1016.41,0.00035616,10]
[402067359,1768504247840,-500.0,0.00035616,10]
[402067360,1768504247852,-561.74,0.00035616,10]
[402067361,1768504247863,-500.0,0.00035616,10]
[402067362,1768504247874,-500.0,0.00035616,10]
[402067363,1768504247885,-629.3,0.00035616,10]
[402067364,1768504247897,-500.0,0.00035616,10]
[402067365,1768504247909,-405.43845754,0.00035616,10]
[402067366,1768504247920,-156.652895,0.00035616,10]
[402067367,1768504247933,-500.0,0.00035616,10]
[402067368,1768504247946,-665.97,0.00035616,10]
[402067369,1768504247958,-239.185561,0.00035616,10]
[402067370,1768504247969,-500.0,0.00035616,10]
[402067371,1768504247981,-500.0,0.00035616,10]
[402067372,1768504247993,-739.87,0.00035616,10]
[402067373,1768504248004,-712.32,0.00035616,10]
[402067374,1768504248016,-500.0,0.00035616,10]
[402067375,1768504248028,-382.0582518,0.00035616,10]
[402067376,1768504248039,-678.86,0.00035616,10]
[402067377,1768504248051,-500.0,0.00035616,10]
[402067378,1768504248062,-691.95,0.00035616,10]
[402067379,1768504248074,-603.88,0.00035616,10]
[402067380,1768504248086,-500.0,0.00035616,10]
[402067381,1768504248099,-500.0,0.00035616,10]
[402067382,1768504248111,-500.0,0.00035616,10]
[402067383,1768504248122,-1140.34,0.00035616,10]
[402067384,1768504248135,-500.0,0.00035616,10]
[402067385,1768504248147,-500.0,0.00035616,10]
[402067386,1768504248158,-500.0,0.00035616,10]
[402067387,1768504248170,-155.71070568,0.00035616,10]
[402067388,1768504248185,-167.14986883,0.00035616,10]
[402067389,1768504248197,-500.0,0.00035616,10]
[402067390,1768504248208,-500.0,0.00035616,10]
[402067391,1768504248220,-500.0,0.00035616,10]
[402067392,1768504248232,-536.86736174,0.00035616,10]
[402067393,1768504248243,-500.0,0.00035616,10]
[402067394,1768504248255,-500.0,0.00035616,10]
[402067395,1768504248267,-868.52,0.00035616,10]
[402067396,1768504248278,-656.17,0.00035616,10]
[402067397,1768504248289,-500.0,0.00035616,10]
[402067398,1768504248302,-500.0,0.00035616,10]
[402067399,1768504248313,-500.0,0.00035616,10]
[402067400,1768504248324,-500.0,0.00035616,10]
[402067401,1768504248335,-500.0,0.00035616,10]
[402067402,1768504248346,-500.0,0.00035616,10]
[402067403,1768504248357,-500.0,0.00035616,10]
[402067404,1768504248369,-500.0,0.00035616,10]
[402067405,1768504248379,-500.0,0.00035616,10]
[402067406,1768504248391,-884.3,0.00035616,10]
[402067407,1768504248402,-648.64,0.00035616,10]
[402067408,1768504248413,-500.0,0.00035616,10]
[402067409,1768504248424,-500.0,0.00035616,10]
[402067410,1768504248435,-500.0,0.00035616,10]
[402067411,1768504248447,-714.27,0.00035616,10]
[402067412,1768504248458,-500.0,0.00035616,10]
[402067413,1768504248469,-682.66,0.00035616,10]
[402067414,1768504248480,-500.0,0.00035616,10]
[402067415,1768504248491,-500.0,0.00035616,10]
[402067416,1768504248503,-500.0,0.00035616,10]
[402067417,1768504248514,-162.79503673,0.00035616,10]
[402067418,1768504248524,-500.0,0.00035616,10]
[402067419,1768504248536,-511.92,0.00035616,10]
[402067420,1768504248546,-500.0,0.00035616,10]
[402067421,1768504248558,-500.0,0.00035616,10]
[402067422,1768504248569,-500.0,0.00035616,10]
[402067423,1768504248580,-500.0,0.00035616,10]
[402067424,1768504248591,-572.3,0.00035616,10]
[402067425,1768504248603,-702.67,0.00035616,10]
[402067426,1768504248614,-179.263514,0.00035616,10]
[402067427,1768504248624,-500.0,0.00035616,10]
[402067428,1768504248635,-500.0,0.00035616,10]
[402067429,1768504248646,-500.0,0.00035616,10]
[402067430,1768504248657,-548.82,0.00035616,10]
[402067431,1768504248669,-500.0,0.00035616,10]
[402067432,1768504248680,-500.0,0.00035616,10]
[402067433,1768504248690,-500.0,0.00035616,10]
[402067434,1768504248701,-596.68253866,0.00035616,10]
[402067435,1768504248714,-597.19,0.00035616,10]
[402067436,1768504248725,-500.0,0.00035616,10]
[402067437,1768504248736,-884.63,0.00035616,10]
[402067438,1768504248747,-671.54,0.00035616,10]
[402067439,1768504248758,-500.0,0.00035616,10]
[402067440,1768504248769,-500.0,0.00035616,10]
[402067441,1768504248780,-500.0,0.00035616,10]
[402067442,1768504248790,-500.0,0.00035616,10]
[402067443,1768504248802,-500.0,0.00035616,10]
[402067444,1768504248813,-500.0,0.00035616,10]
[402067445,1768504248824,-507.54396168,0.00035616,10]
[402067446,1768504248835,-500.0,0.00035616,10]
[402067447,1768504248846,-500.0,0.00035616,10]
[402067448,1768504248857,-500.0,0.00035616,10]
[402067449,1768504248869,-500.0,0.00035616,10]
[402067450,1768504248880,-500.0,0.00035616,10]
[402067451,1768504248891,-160.040885,0.00035616,10]
[402067452,1768504248903,-538.4,0.00035616,10]
[402067453,1768504248914,-673.07,0.00035616,10]
[402067454,1768504248926,-716.05,0.00035616,10]
[402067455,1768504248938,-846.61,0.00035616,10]
[402067456,1768504248949,-500.0,0.00035616,10]
[402067457,1768504248961,-500.0,0.00035616,10]
[402067458,1768504248972,-986.03,0.00035616,10]
[402067459,1768504248983,-500.0,0.00035616,10]
[402067460,1768504248995,-500.0,0.00035616,10]
[402067461,1768504249006,-500.0,0.00035616,10]
[402067462,1768504249018,-500.0,0.00035616,10]
[402067463,1768504249031,-766.24,0.00035616,10]
[402067464,1768504249042,-835.61,0.00035616,10]
[402067465,1768504249053,-354.51195498,0.00035616,10]
[402067466,1768504249064,-500.0,0.00035616,10]
[402067467,1768504249075,-525.01,0.00035616,10]
[402067468,1768504249086,-500.0,0.00035616,10]
[402067469,1768504249098,-500.0,0.00035616,10]
[402067470,1768504249109,-561.88679331,0.00035616,10]
[402067471,1768504249120,-500.0,0.00035616,10]
[402067472,1768504249131,-500.0,0.00035616,10]
[402067473,1768504249143,-723.04,0.00035616,10]
[402067474,1768504249156,-500.0,0.00035616,10]
[402067475,1768504249168,-500.0,0.00035616,10]
[402067476,1768504249179,-500.0,0.00035616,10]
[402067477,1768504249190,-666.81,0.00035616,10]
[402067478,1768504249202,-500.0,0.00035616,10]
[402067479,1768504249213,-500.0,0.00035616,10]
[402067480,1768504249224,-500.0,0.00035616,10]
[402067481,1768504249235,-500.0,0.00035616,10]
[402067482,1768504249246,-500.0,0.00035616,10]
[402067483,1768504249256,-500.0,0.00035616,10]
[402067484,1768504249267,-500.0,0.00035616,10]
[402067485,1768504249278,-500.0,0.00035616,10]
[402067486,1768504249290,-500.0,0.00035616,10]
[402067487,1768504249301,-1004.46,0.00035616,10]
[402067488,1768504249313,-300.0,0.00035616,2]
[402067489,1768504249323,-797.6,0.00035616,10]
[402067490,1768504249336,-500.0,0.00035616,10]
[402067491,1768504249347,-500.0,0.00035616,10]
[402067492,1768504249358,-530.66303515,0.00035616,10]
[402067493,1768504249369,-500.0,0.00035616,10]
[402067494,1768504249380,-500.0,0.00035616,10]
[402067495,1768504249391,-500.0,0.00035616,10]
[402067496,1768504249403,-500.0,0.00035616,10]
[402067497,1768504249414,-500.0,0.00035616,10]
[402067498,1768504249425,-535.85,0.00035616,10]
[402067499,1768504249438,-500.0,0.00035616,10]
[402067500,1768504249450,-229.78995542,0.00035616,10]
[402067501,1768504249461,-500.0,0.00035616,10]
[402067502,1768504249472,-500.0,0.00035616,10]
[402067503,1768504249483,-500.0,0.00035616,10]
[402067504,1768504249495,-759.47,0.00035616,10]
[402067505,1768504249505,-500.0,0.00035616,10]
[402067506,1768504249517,-500.0,0.00035616,10]
[402067507,1768504249528,-500.0,0.00035616,10]
[402067508,1768504249540,-500.0,0.00035616,10]
[402067509,1768504249551,-500.0,0.00035616,10]
[402067510,1768504249561,-875.47,0.00035616,10]
[402067511,1768504249572,-500.0,0.00035616,10]
[402067512,1768504249584,-500.0,0.00035616,10]
[402067513,1768504249595,-242.42301915,0.00035616,10]
[402067514,1768504249606,-500.0,0.00035616,10]
[402067515,1768504249617,-500.0,0.00035616,10]
[402067516,1768504249630,-500.0,0.00035616,10]
[402067517,1768504249643,-525.8760388,0.00035616,10]
[402067518,1768504249656,-500.0,0.00035616,10]
[402067519,1768504249666,-500.0,0.00035616,10]
[402067520,1768504249676,-687.76,0.00035616,10]
[402067521,1768504249687,-500.0,0.00035616,10]
[402067522,1768504249696,-529.58720005,0.00035616,10]
[402067523,1768504249705,-500.0,0.00035616,10]
[402067524,1768504249715,-532.97,0.00035616,10]
[402067525,1768504249724,-500.0,0.00035616,10]
[402067526,1768504249733,-500.0,0.00035616,10]
[402067527,1768504249742,-834.97,0.00035616,10]
[402067528,1768504249751,-500.0,0.00035616,10]
[402067529,1768504249760,-500.0,0.00035616,10]
[402067530,1768504249769,-500.0,0.00035616,10]
[402067531,1768504249778,-508.4799726,0.00035616,10]
[402067532,1768504249787,-94.10497521,0.00035616,10]
[402067533,1768504250719,-405.89502479,0.00035616,10]
[402067534,1768504250728,-500.0,0.00035616,10]
[402067535,1768504250737,-500.0,0.00035616,10]
[402067536,1768504250747,-500.0,0.00035616,10]
[402067537,1768504250756,-533.54543947,0.00035616,14]
[402067538,1768504250767,-180.09456053,0.00035616,14]
[402067539,1768504250776,-500.0,0.00035616,10]
[402067540,1768504250786,-500.0,0.00035616,10]
[402067541,1768504250795,-210.53983221,0.00035616,10]
[402067542,1768504252184,-1.7e-07,0.00017161,2]
[402067543,1768504252196,-499.99999983,0.00017161,2]
[402067544,1768504252205,-500.0,0.00017435,2]
[402067545,1768504252215,-289.46016779,0.00035616,10]
[402067546,1768504252224,-500.0,0.00035616,10]
[402067547,1768504252233,-465.44873933,0.00035616,10]
[402067548,1768504252248,-34.55126067,0.00035616,10]
[402067549,1768504252258,-500.0,0.00035616,10]
[402067550,1768504252268,-355.77309663,0.00035616,10]
[402067551,1768504252277,-500.0,0.00035616,10]
[402067552,1768504252287,-189.23928333,0.00035616,10]
[402067553,1768504252321,-310.76071667,0.00035616,10]
[402067554,1768504252330,-82.5776289,0.00035616,10]
[402067555,1768504252370,-417.4223711,0.00035616,10]
[402067556,1768504252379,-441.48932979,0.00035616,10]
[402067557,1768504252390,-58.51067021,0.00035616,10]
[402067558,1768504252400,-500.0,0.00035616,10]
[402067559,1768504252409,-500.0,0.00035616,10]
[402067560,1768504252419,-500.0,0.00035616,10]
[402067561,1768504252429,-334.04,0.00035616,10]
[402067562,1768504252438,-500.0,0.00035616,10]
[402067563,1768504252447,-500.0,0.00035616,10]
[402067564,1768504252457,-462.58562692,0.00035616,10]
[402067565,1768504252469,-37.41437308,0.00035616,10]
[402067566,1768504252478,-500.0,0.00035616,10]
[402067567,1768504252487,-248.45034292,0.00035616,10]
[402067568,1768504252499,-510.29965708,0.00035616,10]
[402067569,1768504252508,-500.0,0.00035616,10]
[402067570,1768504252518,-500.0,0.00035616,10]
[402067571,1768504252527,-782.76,0.00035616,10]
[402067572,1768504252536,-500.0,0.00035616,10]
[402067573,1768504252546,-500.0,0.00035616,10]
[402067574,1768504252555,-500.0,0.00035616,10]
[402067575,1768504252564,-547.06269284,0.00035616,10]
[402067576,1768504252573,-500.0,0.00035616,10]
[402067577,1768504252582,-500.0,0.00035616,10]
[402067578,1768504252592,-500.0,0.00035616,10]
[402067579,1768504252601,-500.0,0.00035616,10]
[402067580,1768504252610,-507.57786587,0.00035616,10]
[402067581,1768504252619,-500.0,0.00035616,10]
[402067582,1768504252629,-500.0,0.00035616,10]
[402067583,1768504252638,-628.25,0.00035616,10]
[402067584,1768504252647,-500.0,0.00035616,10]
[402067585,1768504252656,-500.0,0.00035616,10]
[402067586,1768504252666,-500.0,0.00035616,10]
[402067587,1768504252675,-500.0,0.00035616,10]
[402067588,1768504252684,-719.06,0.00035616,10]
[402067589,1768504252694,-500.0,0.00035616,10]
[402067590,1768504252703,-500.0,0.00035616,10]
[402067591,1768504252712,-500.0,0.00035616,10]
[402067592,1768504252721,-500.0,0.00035616,10]
[402067593,1768504252731,-1204.83,0.00035616,10]
[402067594,1768504252740,-525.87,0.00035616,10]
[402067595,1768504252750,-500.0,0.00035616,10]
[402067596,1768504252759,-500.0,0.00035616,10]
[402067597,1768504252768,-500.0,0.00035616,10]
[402067598,1768504252777,-500.0,0.00035616,10]
[402067599,1768504252786,-500.0,0.00035616,10]
[402067600,1768504252967,-500.0,0.00035616,10]
[402067601,1768504253039,-500.0,0.00035616,10]
[402067602,1768504253049,-526.41,0.00035616,10]
[402067603,1768504253059,-500.0,0.00035616,10]
[402067604,1768504253069,-500.0,0.00035616,10]
[402067605,1768504253079,-500.0,0.00035616,10]
[402067606,1768504253088,-500.0,0.00035616,10]
[402067607,1768504253099,-500.0,0.00035616,10]
[402067608,1768504253110,-500.0,0.00035616,10]
[402067609,1768504253120,-577.93,0.00035616,10]
[402067610,1768504253129,-500.0,0.00035616,10]
[402067611,1768504253139,-1338.59,0.00035616,10]
[402067612,1768504253149,-500.0,0.00035616,10]
[402067613,1768504253159,-500.0,0.00035616,10]
[402067614,1768504253169,-738.49,0.00035616,10]
[402067615,1768504253180,-475.89103557,0.00035616,10]
[402067616,1768504253190,-500.0,0.00035616,10]
[402067617,1768504253199,-500.0,0.00035616,10]
[402067618,1768504253209,-500.0,0.00035616,10]
[402067619,1768504253219,-500.0,0.00035616,10]
[402067620,1768504253228,-567.01205073,0.00035616,10]
[402067621,1768504253238,-500.0,0.00035616,10]
[402067622,1768504253247,-500.0,0.00035616,10]
[402067623,1768504253257,-500.0,0.00035616,10]
[402067624,1768504253266,-500.0,0.00035616,10]
[402067625,1768504253276,-500.0,0.00035616,10]
[402067626,1768504253286,-500.0,0.00035616,10]
[402067627,1768504253296,-500.0,0.00035616,10]
[402067628,1768504253313,-636.84,0.00035616,10]
[402067629,1768504253330,-518.60768307,0.00035616,10]
[402067630,1768504253342,-500.0,0.00035616,10]
[402067631,1768504253351,-500.0,0.00035616,10]
[402067632,1768504253361,-500.0,0.00035616,10]
[402067633,1768504253371,-500.0,0.00035616,10]
[402067634,1768504253380,-500.0,0.00035616,10]
[402067635,1768504253390,-500.0,0.00035616,10]
[402067636,1768504253400,-500.0,0.00035616,10]
[402067637,1768504253410,-500.0,0.00035616,10]
[402067638,1768504253420,-500.0,0.00035616,10]
[402067639,1768504253430,-500.0,0.00035616,10]
[402067640,1768504253440,-1074.46,0.00035616,10]
[402067641,1768504253450,-500.0,0.00035616,10]
[402067642,1768504253459,-500.0,0.00035616,10]
[402067643,1768504253469,-500.0,0.00035616,10]
[402067644,1768504253479,-500.0,0.00035616,10]
[402067645,1768504253489,-500.0,0.00035616,10]
[402067646,1768504253499,-594.74,0.00035616,10]
[402067647,1768504253515,-500.0,0.00035616,10]
[402067648,1768504253525,-500.0,0.00035616,10]
[402067649,1768504253536,-500.0,0.00035616,10]
[402067650,1768504253545,-500.0,0.00035616,10]
[402067651,1768504253556,-2885.22,0.00035616,10]
[402067652,1768504253566,-500.0,0.00035616,10]
[402067653,1768504253576,-500.0,0.00035616,10]
[402067654,1768504253586,-562.91890486,0.00035616,10]
[402067655,1768504253595,-500.0,0.00035616,10]
[402067656,1768504253606,-3413.68,0.00035616,10]
[402067657,1768504253615,-500.0,0.00035616,10]
[402067658,1768504253625,-500.0,0.00035616,10]
[402067659,1768504253636,-500.0,0.00035616,10]
[402067660,1768504253646,-540.35,0.00035616,10]
[402067661,1768504253656,-500.0,0.00035616,10]
[402067662,1768504253666,-500.0,0.00035616,10]
[402067663,1768504253676,-500.0,0.00035616,10]
[402067664,1768504253686,-9495.76,0.00035616,10]
[402067665,1768504253696,-500.0,0.00035616,10]
[402067666,1768504253706,-500.0,0.00035616,120]
[402067667,1768504253716,-693.67,0.00035616,10]
[402067668,1768504253725,-500.0,0.00035616,10]
[402067669,1768504253736,-500.0,0.00035616,10]
[402067670,1768504253746,-500.0,0.00035616,10]
[402067671,1768504253756,-500.0,0.00035616,10]
[402067672,1768504253767,-500.0,0.00035616,10]
[402067673,1768504253778,-581.65,0.00035616,10]
[402067674,1768504253788,-500.0,0.00035616,10]
[402067675,1768504253798,-500.0,0.00035616,10]
[402067676,1768504253808,-500.0,0.00035616,10]
[402067677,1768504253819,-500.0,0.00035616,10]
[402067678,1768504253829,-500.0,0.00035616,10]
[402067679,1768504253839,-500.0,0.00035616,10]
[402067680,1768504253850,-500.0,0.00035616,10]
[402067681,1768504253864,-500.0,0.00035616,10]
[402067682,1768504253875,-560.98,0.00035616,10]
[402067683,1768504253886,-152.86602126,0.00035616,10]
[402067684,1768504253896,-500.0,0.00035616,10]
[402067685,1768504253906,-369.75723545,0.00035616,10]
[402067686,1768504253917,-502.57,0.00035616,10]